fUST/lending_fUST_20260520
["ID","MTS","AMOUNT","RATE_DAILY","PERIOD"]
[422695536,1779258640000,-238.0,6.853e-05,2]
[422695534,1779258640000,-593.0679235,6.353e-05,2]
[422695535,1779258640000,-203.105674,6.701e-05,2]
[422695539,1779258640000,-151.0,6.854e-05,2]
[422695537,1779258640000,-151.0,6.854e-05,2]
[422695542,1779258640000,-151.0,6.854e-05,2]
[422695556,1779258640000,-229.30303048,7.064e-05,2]
[422695533,1779258640000,-300.0,5.98e-05,2]
[422695557,1779258640000,-341.62236553,7.064e-05,2]
[422695558,1779258640000,-500.0,7.064e-05,2]
[422695582,1779258640000,-500.0,7.064e-05,2]
[422695581,1779258640000,-500.0,7.064e-05,2]
[422695580,1779258640000,-500.0,7.064e-05,2]
[422695578,1779258640000,-500.0,7.064e-05,2]
[422695579,1779258640000,-500.0,7.064e-05,2]
[422695576,1779258640000,-500.0,7.064e-05,2]
[422695572,1779258640000,-500.0,7.064e-05,2]
[422695575,1779258640000,-500.0,7.064e-05,2]
[422695566,1779258640000,-500.0,7.064e-05,2]
[422695570,1779258640000,-500.0,7.064e-05,2]
[422695577,1779258640000,-370.08141508,7.064e-05,2]
[422695571,1779258640000,-500.0,7.064e-05,2]
[422695559,1779258640000,-438.66115519,7.064e-05,2]
[422695573,1779258640000,-500.0,7.064e-05,2]
[422695561,1779258640000,-500.0,7.064e-05,2]
[422695562,1779258640000,-500.0,7.064e-05,2]
[422695564,1779258640000,-500.0,7.064e-05,2]
[422695560,1779258640000,-61.33884481,7.064e-05,2]
[422695567,1779258640000,-411.89770861,7.064e-05,2]
[422695568,1779258640000,-88.10229139,7.064e-05,2]
[422695569,1779258640000,-500.0,7.064e-05,2]
[422695574,1779258640000,-313.49580326,7.064e-05,2]
[422695565,1779258640000,-500.0,7.064e-05,2]
[422695626,1779258641000,-300.0,7.408e-05,2]
[422695624,1779258641000,-300.0,7.408e-05,2]
[422695623,1779258641000,-300.0,7.408e-05,2]
[422695621,1779258641000,-300.0,7.408e-05,2]
[422695620,1779258641000,-300.0,7.408e-05,2]
[422695616,1779258641000,-203.105674,7.406e-05,2]
[422695619,1779258641000,-300.0,7.408e-05,2]
[422695617,1779258641000,-300.0,7.408e-05,2]
[422695618,1779258641000,-300.0,7.408e-05,2]
[422695615,1779258641000,-2849.17873052,7.406e-05,2]
[422695622,1779258641000,-300.0,7.408e-05,2]
[422695632,1779258641000,-600.0,7.408e-05,2]
[422695636,1779258641000,-420.0,7.769e-05,2]
[422695631,1779258641000,-300.0,7.408e-05,2]
[422695633,1779258641000,-152.0,7.445e-05,2]
[422695630,1779258641000,-300.0,7.408e-05,2]
[422695629,1779258641000,-300.0,7.408e-05,2]
[422695627,1779258641000,-300.0,7.408e-05,2]
[422695625,1779258641000,-300.0,7.408e-05,2]
[422695628,1779258641000,-300.0,7.408e-05,2]
[422695635,1779258641000,-1457.3880085,7.668e-05,2]
[422695640,1779258641000,-1520.15169406,8e-05,2]
[422695638,1779258641000,-160.0,7.942e-05,2]
[422695614,1779258641000,-1295267.51266281,7.265e-05,2]
[422695639,1779258641000,-1520.1516941,8e-05,2]
[422695634,1779258641000,-152.0,7.445e-05,2]
[422695613,1779258641000,-346.4132359,7.224e-05,2]
[422695597,1779258641000,-500.0,7.064e-05,2]
[422695611,1779258641000,-152.0,7.159e-05,2]
[422695646,1779258641000,-161.70661154,8.113e-05,2]
[422695586,1779258641000,-500.0,7.064e-05,2]
[422695588,1779258641000,-500.0,7.064e-05,2]
[422695587,1779258641000,-483.82688071,7.064e-05,2]
[422695585,1779258641000,-500.0,7.064e-05,2]
[422695584,1779258641000,-366.05273999,7.064e-05,2]
[422695583,1779258641000,-500.0,7.064e-05,2]
[422695590,1779258641000,-500.0,7.064e-05,2]
[422695589,1779258641000,-500.0,7.064e-05,2]
[422695591,1779258641000,-500.0,7.064e-05,2]
[422695593,1779258641000,-500.0,7.064e-05,2]
[422695595,1779258641000,-500.0,7.064e-05,2]
[422695612,1779258641000,-152.0,7.159e-05,2]
[422695600,1779258641000,-500.0,7.064e-05,2]
[422695599,1779258641000,-500.0,7.064e-05,2]
[422695596,1779258641000,-500.0,7.064e-05,2]
[422695601,1779258641000,-500.0,7.064e-05,2]
[422695602,1779258641000,-550.0,7.064e-05,2]
[422695606,1779258641000,-10513.2175195,7.065e-05,2]
[422695604,1779258641000,-500.0,7.064e-05,2]
[422695605,1779258641000,-500.0,7.064e-05,2]
[422695607,1779258641000,-309121.70939424,7.065e-05,2]
[422695603,1779258641000,-500.0,7.064e-05,2]
[422695608,1779258641000,-151.0,7.12e-05,2]
[422695610,1779258641000,-152.0,7.159e-05,2]
[422695609,1779258641000,-151.0,7.12e-05,2]
[422695598,1779258641000,-505.52550781,7.064e-05,2]
[422695641,1779258641000,-226.91,8.067e-05,2]
[422695592,1779258641000,-500.0,7.064e-05,2]
[422695642,1779258641000,-203.105674,8.111e-05,2]
[422695683,1779258641000,-500.0,8.219e-05,2]
[422695673,1779258641000,-567.54,8.219e-05,2]
[422695677,1779258641000,-1229.24,8.219e-05,2]
[422695681,1779258641000,-500.0,8.219e-05,2]
[422695678,1779258641000,-500.0,8.219e-05,2]
[422695684,1779258641000,-500.0,8.219e-05,2]
[422695680,1779258641000,-500.0,8.219e-05,2]
[422695682,1779258641000,-500.0,8.219e-05,2]
[422695675,1779258641000,-500.0,8.219e-05,2]
[422695676,1779258641000,-500.0,8.219e-05,2]
[422695679,1779258641000,-500.0,8.219e-05,2]
[422695685,1779258641000,-500.0,8.219e-05,2]
[422695686,1779258641000,-500.0,8.219e-05,2]
[422695688,1779258641000,-500.0,8.219e-05,2]
[422695687,1779258641000,-500.0,8.219e-05,2]
[422695695,1779258641000,-500.0,8.219e-05,2]
[422695698,1779258641000,-500.0,8.219e-05,2]
[422695690,1779258641000,-500.0,8.219e-05,2]
[422695696,1779258641000,-812.22,8.219e-05,2]
[422695694,1779258641000,-500.23866444,8.219e-05,2]
[422695691,1779258641000,-500.0,8.219e-05,2]
[422695693,1779258641000,-500.0,8.219e-05,2]
[422695692,1779258641000,-204.75194603,8.219e-05,2]
[422695697,1779258641000,-500.0,8.219e-05,2]
[422695699,1779258641000,-500.0,8.219e-05,2]
[422695674,1779258641000,-500.0,8.219e-05,2]
[422695671,1779258641000,-500.0,8.219e-05,2]
[422695689,1779258641000,-500.0,8.219e-05,2]
[422695669,1779258641000,-500.0,8.219e-05,2]
[422695667,1779258641000,-784.06,8.219e-05,2]
[422695645,1779258641000,-160.0,8.113e-05,2]
[422695637,1779258641000,-250.0,7.834e-05,2]
[422695644,1779258641000,-160.0,8.113e-05,2]
[422695647,1779258641000,-720.0,8.149e-05,2]
[422695649,1779258641000,-152.0,8.15e-05,7]
[422695659,1779258641000,-500.0,8.219e-05,2]
[422695657,1779258641000,-500.0,8.219e-05,2]
[422695650,1779258641000,-2637.8279,8.219e-05,2]
[422695651,1779258641000,-500.0,8.219e-05,2]
[422695653,1779258641000,-500.0,8.219e-05,2]
[422695654,1779258641000,-500.0,8.219e-05,2]
[422695648,1779258641000,-152.0,8.15e-05,7]
[422695643,1779258641000,-766.43500783,8.113e-05,2]
[422695655,1779258641000,-500.0,8.219e-05,2]
[422695652,1779258641000,-687.2055,8.219e-05,2]
[422695672,1779258641000,-500.0,8.219e-05,2]
[422695666,1779258641000,-500.0,8.219e-05,2]
[422695670,1779258641000,-500.0,8.219e-05,2]
[422695665,1779258641000,-500.0,8.219e-05,2]
[422695668,1779258641000,-500.0,8.219e-05,2]
[422695664,1779258641000,-500.0,8.219e-05,2]
[422695658,1779258641000,-500.0,8.219e-05,2]
[422695662,1779258641000,-500.0,8.219e-05,2]
[422695656,1779258641000,-500.87015989,8.219e-05,2]
[422695661,1779258641000,-500.0,8.219e-05,2]
[422695660,1779258641000,-462.88524329,8.219e-05,2]
[422695663,1779258641000,-500.0,8.219e-05,2]
[422695731,1779258642000,-1022.16,8.219e-05,2]
[422695732,1779258642000,-500.0,8.219e-05,2]
[422695730,1779258642000,-500.0,8.219e-05,2]
[422695735,1779258642000,-500.0,8.219e-05,2]
[422695744,1779258642000,-549.77397496,8.219e-05,2]
[422695743,1779258642000,-500.0,8.219e-05,2]
[422695745,1779258642000,-500.0,8.219e-05,2]
[422695746,1779258642000,-1011.05,8.219e-05,2]
[422695748,1779258642000,-500.0,8.219e-05,2]
[422695733,1779258642000,-500.0,8.219e-05,2]
[422695738,1779258642000,-535.96,8.219e-05,2]
[422695737,1779258642000,-500.0,8.219e-05,2]
[422695734,1779258642000,-500.0,8.219e-05,2]
[422695740,1779258642000,-500.0,8.219e-05,2]
[422695729,1779258642000,-500.24179954,8.219e-05,2]
[422695739,1779258642000,-500.0,8.219e-05,2]
[422695741,1779258642000,-500.0,8.219e-05,2]
[422695749,1779258642000,-500.0,8.219e-05,2]
[422695750,1779258642000,-500.0,8.219e-05,2]
[422695754,1779258642000,-500.0,8.219e-05,2]
[422695751,1779258642000,-500.0,8.219e-05,2]
[422695736,1779258642000,-500.0,8.219e-05,2]
[422695727,1779258642000,-545.16,8.219e-05,2]
[422695709,1779258642000,-592.91,8.219e-05,2]
[422695722,1779258642000,-601.31,8.219e-05,2]
[422695753,1779258642000,-500.0,8.219e-05,2]
[422695705,1779258642000,-2953.94,8.219e-05,2]
[422695706,1779258642000,-500.0,8.219e-05,2]
[422695707,1779258642000,-500.0,8.219e-05,2]
[422695703,1779258642000,-500.0,8.219e-05,2]
[422695701,1779258642000,-500.0,8.219e-05,2]
[422695700,1779258642000,-500.0,8.219e-05,2]
[422695702,1779258642000,-1334.84,8.219e-05,2]
[422695704,1779258642000,-500.0,8.219e-05,2]
[422695708,1779258642000,-500.0,8.219e-05,2]
[422695713,1779258642000,-500.0,8.219e-05,2]
[422695714,1779258642000,-502.04778168,8.219e-05,2]
[422695715,1779258642000,-500.0,8.219e-05,2]
[422695718,1779258642000,-500.0,8.219e-05,2]
[422695717,1779258642000,-500.0,8.219e-05,2]
[422695712,1779258642000,-500.22653593,8.219e-05,2]
[422695710,1779258642000,-500.0,8.219e-05,2]
[422695716,1779258642000,-552.61,8.219e-05,2]
[422695720,1779258642000,-739.35,8.219e-05,2]
[422695719,1779258642000,-500.29673253,8.219e-05,2]
[422695721,1779258642000,-500.25861027,8.219e-05,2]
[422695728,1779258642000,-1002.40691391,8.219e-05,2]
[422695711,1779258642000,-500.0,8.219e-05,2]
[422695752,1779258642000,-500.0,8.219e-05,2]
[422695757,1779258642000,-573.52,8.219e-05,2]
[422695781,1779258642000,-500.0,8.219e-05,2]
[422695783,1779258642000,-500.0,8.219e-05,2]
[422695782,1779258642000,-500.0,8.219e-05,2]
[422695786,1779258642000,-808.32,8.219e-05,2]
[422695788,1779258642000,-500.0,8.219e-05,2]
[422695798,1779258642000,-1251.44,8.219e-05,2]
[422695787,1779258642000,-601.07248518,8.219e-05,2]
[422695803,1779258642000,-833.34,8.219e-05,2]
[422695804,1779258642000,-503.98719432,8.219e-05,2]
[422695800,1779258642000,-1154.42,8.219e-05,2]
[422695797,1779258642000,-501.6188061,8.219e-05,2]
[422695789,1779258642000,-500.0,8.219e-05,2]
[422695791,1779258642000,-500.0,8.219e-05,2]
[422695790,1779258642000,-500.16646464,8.219e-05,2]
[422695793,1779258642000,-500.0,8.219e-05,2]
[422695795,1779258642000,-500.0,8.219e-05,2]
[422695805,1779258642000,-500.0,8.219e-05,2]
[422695807,1779258642000,-500.0,8.219e-05,2]
[422695806,1779258642000,-1578.19,8.219e-05,2]
[422695808,1779258642000,-503.57,8.219e-05,2]
[422695761,1779258642000,-500.0,8.219e-05,2]
[422695784,1779258642000,-500.0,8.219e-05,2]
[422695778,1779258642000,-2962.08,8.219e-05,2]
[422695801,1779258642000,-500.0,8.219e-05,2]
[422695775,1779258642000,-500.0,8.219e-05,2]
[422695760,1779258642000,-685.51,8.219e-05,2]
[422695785,1779258642000,-500.0,8.219e-05,2]
[422695755,1779258642000,-500.0,8.219e-05,2]
[422695756,1779258642000,-500.0,8.219e-05,2]
[422695758,1779258642000,-500.0,8.219e-05,2]
[422695759,1779258642000,-1549.62,8.219e-05,2]
[422695763,1779258642000,-500.0,8.219e-05,2]
[422695773,1779258642000,-500.0,8.219e-05,2]
[422695764,1779258642000,-500.0,8.219e-05,2]
[422695766,1779258642000,-517.29,8.219e-05,2]
[422695765,1779258642000,-500.0,8.219e-05,2]
[422695762,1779258642000,-585.56,8.219e-05,2]
[422695768,1779258642000,-286.86437038,8.219e-05,2]
[422695769,1779258642000,-500.0,8.219e-05,2]
[422695771,1779258642000,-500.0,8.219e-05,2]
[422695767,1779258642000,-733.14,8.219e-05,2]
[422695770,1779258642000,-500.0,8.219e-05,2]
[422695772,1779258642000,-500.0,8.219e-05,2]
[422695774,1779258642000,-500.0,8.219e-05,2]
[422695776,1779258642000,-500.0,8.219e-05,2]
[422695777,1779258642000,-500.0,8.219e-05,2]
[422695780,1779258642000,-500.0,8.219e-05,2]
[422695779,1779258642000,-500.0,8.219e-05,2]
[422695851,1779258643000,-500.0,8.219e-05,2]
[422695849,1779258643000,-500.0,8.219e-05,2]
[422695839,1779258643000,-500.0,8.219e-05,2]
[422695842,1779258643000,-500.0,8.219e-05,2]
[422695843,1779258643000,-911.0,8.219e-05,2]
[422695845,1779258643000,-383.131,8.219e-05,2]
[422695840,1779258643000,-911.0,8.219e-05,2]
[422695838,1779258643000,-622.07,8.219e-05,2]
[422695837,1779258643000,-911.0,8.219e-05,2]
[422695850,1779258643000,-500.0,8.219e-05,2]
[422695841,1779258643000,-1269.63,8.219e-05,2]
[422695853,1779258643000,-500.0,8.219e-05,2]
[422695863,1779258643000,-500.0,8.219e-05,2]
[422695852,1779258643000,-500.0,8.219e-05,2]
[422695855,1779258643000,-614.33,8.219e-05,2]
[422695858,1779258643000,-1740.01,8.219e-05,2]
[422695856,1779258643000,-596.99,8.219e-05,2]
[422695857,1779258643000,-500.0,8.219e-05,2]
[422695859,1779258643000,-500.0,8.219e-05,2]
[422695860,1779258643000,-500.0,8.219e-05,2]
[422695861,1779258643000,-446.25989738,8.219e-05,2]
[422695862,1779258643000,-500.0,8.219e-05,2]
[422695864,1779258643000,-500.0,8.219e-05,2]
[422695867,1779258643000,-500.0,8.219e-05,2]
[422695835,1779258643000,-169.07947682,8.219e-05,2]
[422695854,1779258643000,-2868.81,8.219e-05,2]
[422695848,1779258643000,-924.68,8.219e-05,2]
[422695814,1779258643000,-911.0,8.219e-05,2]
[422695846,1779258643000,-500.0,8.219e-05,2]
[422695866,1779258643000,-500.0,8.219e-05,2]
[422695809,1779258643000,-500.18263972,8.219e-05,2]
[422695811,1779258643000,-500.0,8.219e-05,2]
[422695812,1779258643000,-911.0,8.219e-05,2]
[422695813,1779258643000,-911.0,8.219e-05,2]
[422695816,1779258643000,-911.0,8.219e-05,2]
[422695817,1779258643000,-911.0,8.219e-05,2]
[422695819,1779258643000,-911.0,8.219e-05,2]
[422695818,1779258643000,-911.0,8.219e-05,2]
[422695820,1779258643000,-911.0,8.219e-05,2]
[422695821,1779258643000,-911.0,8.219e-05,2]
[422695822,1779258643000,-911.0,8.219e-05,2]
[422695844,1779258643000,-914.15877526,8.219e-05,2]
[422695824,1779258643000,-911.0,8.219e-05,2]
[422695823,1779258643000,-911.0,8.219e-05,2]
[422695826,1779258643000,-911.0,8.219e-05,2]
[422695831,1779258643000,-911.0,8.219e-05,2]
[422695830,1779258643000,-911.0,8.219e-05,2]
[422695827,1779258643000,-911.0,8.219e-05,2]
[422695828,1779258643000,-911.0,8.219e-05,2]
[422695832,1779258643000,-911.0,8.219e-05,2]
[422695834,1779258643000,-157.53574515,8.219e-05,2]
[422695829,1779258643000,-500.0,8.219e-05,2]
[422695833,1779258643000,-911.0,8.219e-05,2]
[422695836,1779258643000,-226.49738517,8.219e-05,2]
[422695847,1779258643000,-500.0,8.219e-05,2]
[422695825,1779258643000,-911.0,8.219e-05,2]
[422695869,1779258643000,-500.0,8.219e-05,2]
[422695912,1779258643000,-500.0,8.219e-05,2]
[422695871,1779258643000,-500.0,8.219e-05,2]
[422695910,1779258643000,-500.0,8.219e-05,2]
[422695900,1779258643000,-500.0,8.219e-05,2]
[422695899,1779258643000,-620.82,8.219e-05,2]
[422695904,1779258643000,-2975.12,8.219e-05,2]
[422695903,1779258643000,-500.0,8.219e-05,2]
[422695905,1779258643000,-500.0,8.219e-05,2]
[422695908,1779258643000,-500.0,8.219e-05,2]
[422695902,1779258643000,-1108.58,8.219e-05,2]
[422695906,1779258643000,-500.0,8.219e-05,2]
[422695911,1779258643000,-500.0,8.219e-05,2]
[422695907,1779258643000,-500.21839488,8.219e-05,2]
[422695926,1779258643000,-906.42,8.219e-05,2]
[422695901,1779258643000,-500.0,8.219e-05,2]
[422695909,1779258643000,-500.0,8.219e-05,2]
[422695914,1779258643000,-279.20293345,8.219e-05,2]
[422695924,1779258643000,-500.0,8.219e-05,2]
[422695915,1779258643000,-7049.39,8.219e-05,2]
[422695919,1779258643000,-500.0,8.219e-05,2]
[422695925,1779258643000,-3106.58,8.219e-05,2]
[422695916,1779258643000,-500.0,8.219e-05,2]
[422695917,1779258643000,-500.0,8.219e-05,2]
[422695921,1779258643000,-500.0,8.219e-05,2]
[422695923,1779258643000,-500.0,8.219e-05,2]
[422695918,1779258643000,-500.0,8.219e-05,2]
[422695920,1779258643000,-500.0,8.219e-05,2]
[422695865,1779258643000,-500.0,8.219e-05,2]
[422695913,1779258643000,-559.88157899,8.219e-05,2]
[422695896,1779258643000,-2205.44,8.219e-05,2]
[422695922,1779258643000,-1430.38,8.219e-05,2]
[422695898,1779258643000,-500.0,8.219e-05,2]
[422695868,1779258643000,-732.39,8.219e-05,2]
[422695870,1779258643000,-500.0,8.219e-05,2]
[422695872,1779258643000,-500.0,8.219e-05,2]
[422695873,1779258643000,-500.0,8.219e-05,2]
[422695874,1779258643000,-500.0,8.219e-05,2]
[422695875,1779258643000,-859.8,8.219e-05,2]
[422695878,1779258643000,-945.14,8.219e-05,2]
[422695897,1779258643000,-500.0,8.219e-05,2]
[422695879,1779258643000,-704.68,8.219e-05,2]
[422695877,1779258643000,-1023.0931,8.219e-05,2]
[422695880,1779258643000,-500.0,8.219e-05,2]
[422695881,1779258643000,-500.0,8.219e-05,2]
[422695882,1779258643000,-533.38,8.219e-05,2]
[422695876,1779258643000,-555.92734411,8.219e-05,2]
[422695884,1779258643000,-500.0,8.219e-05,2]
[422695895,1779258643000,-500.0,8.219e-05,2]
[422695883,1779258643000,-500.0,8.219e-05,2]
[422695894,1779258643000,-500.19946635,8.219e-05,2]
[422695892,1779258643000,-500.0,8.219e-05,2]
[422695889,1779258643000,-500.0,8.219e-05,2]
[422695893,1779258643000,-500.0,8.219e-05,2]
[422695890,1779258643000,-500.0,8.219e-05,2]
[422695888,1779258643000,-500.0,8.219e-05,2]
[422695887,1779258643000,-500.0,8.219e-05,2]
[422695886,1779258643000,-500.0,8.219e-05,2]
[422695885,1779258643000,-500.0,8.219e-05,2]
[422695891,1779258643000,-500.0,8.219e-05,2]
[422695964,1779258644000,-500.0,8.219e-05,2]
[422695967,1779258644000,-2837.8,8.219e-05,2]
[422695960,1779258644000,-500.0,8.219e-05,2]
[422695961,1779258644000,-500.0,8.219e-05,2]
[422695958,1779258644000,-2146.79,8.219e-05,2]
[422695963,1779258644000,-500.0,8.219e-05,2]
[422695953,1779258644000,-500.80463691,8.219e-05,2]
[422695965,1779258644000,-500.0,8.219e-05,2]
[422695959,1779258644000,-715.19,8.219e-05,2]
[422695962,1779258644000,-500.0,8.219e-05,2]
[422695977,1779258644000,-500.0,8.219e-05,2]
[422695978,1779258644000,-500.0,8.219e-05,2]
[422695970,1779258644000,-151.0,8.219e-05,2]
[422695973,1779258644000,-500.0,8.219e-05,2]
[422695972,1779258644000,-500.0,8.219e-05,2]
[422695971,1779258644000,-288.154127,8.219e-05,2]
[422695969,1779258644000,-151.0,8.219e-05,2]
[422695968,1779258644000,-151.0,8.219e-05,2]
[422695974,1779258644000,-500.0,8.219e-05,2]
[422695976,1779258644000,-500.0,8.219e-05,2]
[422695975,1779258644000,-2336.1,8.219e-05,2]
[422695979,1779258644000,-1972.62,8.219e-05,2]
[422695981,1779258644000,-500.0,8.219e-05,2]
[422695957,1779258644000,-500.0,8.219e-05,2]
[422695966,1779258644000,-500.0,8.219e-05,2]
[422695955,1779258644000,-2650.41,8.219e-05,2]
[422695941,1779258644000,-500.0,8.219e-05,2]
[422695954,1779258644000,-221.59144435,8.219e-05,2]
[422695980,1779258644000,-500.0,8.219e-05,2]
[422695927,1779258644000,-500.63785134,8.219e-05,2]
[422695939,1779258644000,-500.0,8.219e-05,2]
[422695929,1779258644000,-2324.5,8.219e-05,2]
[422695928,1779258644000,-500.0,8.219e-05,2]
[422695938,1779258644000,-500.0,8.219e-05,2]
[422695937,1779258644000,-500.0,8.219e-05,2]
[422695930,1779258644000,-500.0,8.219e-05,2]
[422695932,1779258644000,-968.72,8.219e-05,2]
[422695935,1779258644000,-1572.47,8.219e-05,2]
[422695934,1779258644000,-565.87,8.219e-05,2]
[422695933,1779258644000,-500.0,8.219e-05,2]
[422695936,1779258644000,-500.0,8.219e-05,2]
[422695931,1779258644000,-500.0,8.219e-05,2]
[422695951,1779258644000,-500.0,8.219e-05,2]
[422695944,1779258644000,-500.0,8.219e-05,2]
[422695943,1779258644000,-500.0,8.219e-05,2]
[422695940,1779258644000,-500.0,8.219e-05,2]
[422695946,1779258644000,-500.0,8.219e-05,2]
[422695945,1779258644000,-500.0,8.219e-05,2]
[422695947,1779258644000,-500.14333822,8.219e-05,2]
[422695950,1779258644000,-2176.4,8.219e-05,2]
[422695949,1779258644000,-500.0,8.219e-05,2]
[422695948,1779258644000,-3011.22,8.219e-05,2]
[422695952,1779258644000,-500.0,8.219e-05,2]
[422695956,1779258644000,-500.0,8.219e-05,2]
[422695983,1779258644000,-500.0,8.219e-05,2]
[422695942,1779258644000,-500.0,8.219e-05,2]
[422695985,1779258644000,-151.0,8.219e-05,2]
[422696012,1779258644000,-151.0,8.219e-05,2]
[422696015,1779258644000,-5897.47,8.219e-05,2]
[422696018,1779258644000,-500.0,8.219e-05,2]
[422696017,1779258644000,-500.0,8.219e-05,2]
[422696039,1779258644000,-500.0,8.219e-05,2]
[422696019,1779258644000,-500.0,8.219e-05,2]
[422696021,1779258644000,-277.2645175,8.219e-05,2]
[422696026,1779258644000,-151.426994,8.219e-05,2]
[422696024,1779258644000,-151.0,8.219e-05,2]
[422696022,1779258644000,-500.0,8.219e-05,2]
[422696027,1779258644000,-201.52664561,8.219e-05,2]
[422696020,1779258644000,-500.0,8.219e-05,2]
[422696023,1779258644000,-151.0,8.219e-05,2]
[422696028,1779258644000,-500.0,8.219e-05,2]
[422696025,1779258644000,-500.0,8.219e-05,2]
[422696031,1779258644000,-229.26093097,8.219e-05,2]
[422696032,1779258644000,-500.0,8.219e-05,2]
[422696029,1779258644000,-500.0,8.219e-05,2]
[422696030,1779258644000,-500.0,8.219e-05,2]
[422696033,1779258644000,-500.0,8.219e-05,2]
[422696035,1779258644000,-504.50549365,8.219e-05,2]
[422696036,1779258644000,-500.0,8.219e-05,2]
[422696037,1779258644000,-9949.972457,8.219e-05,2]
[422696038,1779258644000,-500.0,8.219e-05,2]
[422695984,1779258644000,-1921.99,8.219e-05,2]
[422696011,1779258644000,-151.0,8.219e-05,2]
[422696016,1779258644000,-500.0,8.219e-05,2]
[422696034,1779258644000,-9949.972457,8.219e-05,2]
[422696014,1779258644000,-297.997542,8.219e-05,2]
[422696013,1779258644000,-215.636803,8.219e-05,2]
[422695982,1779258644000,-6707.52,8.219e-05,2]
[422695986,1779258644000,-151.0,8.219e-05,2]
[422695989,1779258644000,-151.0,8.219e-05,2]
[422695987,1779258644000,-151.0,8.219e-05,2]
[422695992,1779258644000,-500.93123407,8.219e-05,2]
[422695990,1779258644000,-151.0,8.219e-05,2]
[422695988,1779258644000,-151.0,8.219e-05,2]
[422695994,1779258644000,-151.0,8.219e-05,2]
[422696004,1779258644000,-151.0,8.219e-05,2]
[422695996,1779258644000,-151.0,8.219e-05,2]
[422695995,1779258644000,-500.0,8.219e-05,2]
[422695998,1779258644000,-151.0,8.219e-05,2]
[422695991,1779258644000,-151.0,8.219e-05,2]
[422695999,1779258644000,-500.0,8.219e-05,2]
[422696006,1779258644000,-188.0,8.219e-05,2]
[422695993,1779258644000,-151.0,8.219e-05,2]
[422696010,1779258644000,-151.0,8.219e-05,2]
[422696007,1779258644000,-151.0,8.219e-05,2]
[422696005,1779258644000,-151.0,8.219e-05,2]
[422696009,1779258644000,-439.07932404,8.219e-05,2]
[422696001,1779258644000,-151.0,8.219e-05,2]
[422696002,1779258644000,-151.0,8.219e-05,2]
[422696000,1779258644000,-151.0,8.219e-05,2]
[422695997,1779258644000,-151.0,8.219e-05,2]
[422696003,1779258644000,-151.0,8.219e-05,2]
[422696008,1779258644000,-151.0,8.219e-05,2]
[422696067,1779258645000,-9949.972457,8.219e-05,2]
[422696065,1779258645000,-482.49954591,8.219e-05,2]
[422696068,1779258645000,-9949.972457,8.219e-05,2]
[422696075,1779258645000,-500.0,8.219e-05,2]
[422696072,1779258645000,-9949.972457,8.219e-05,2]
[422696069,1779258645000,-151.0,8.219e-05,2]
[422696076,1779258645000,-9949.972457,8.219e-05,2]
[422696066,1779258645000,-539.08099556,8.219e-05,2]
[422696074,1779258645000,-9949.972457,8.219e-05,2]
[422696079,1779258645000,-9949.972457,8.219e-05,2]
[422696077,1779258645000,-9949.972457,8.219e-05,2]
[422696070,1779258645000,-9949.972457,8.219e-05,2]
[422696073,1779258645000,-164.575167,8.219e-05,2]
[422696089,1779258645000,-565.441517,8.219e-05,2]
[422696078,1779258645000,-9949.972457,8.219e-05,2]
[422696080,1779258645000,-9949.972457,8.219e-05,2]
[422696081,1779258645000,-9949.972465,8.219e-05,2]
[422696057,1779258645000,-9949.972457,8.219e-05,2]
[422696086,1779258645000,-565.441517,8.219e-05,2]
[422696071,1779258645000,-151.0,8.219e-05,2]
[422696058,1779258645000,-500.0,8.219e-05,2]
[422696049,1779258645000,-500.0,8.219e-05,2]
[422696060,1779258645000,-500.0,8.219e-05,2]
[422696087,1779258645000,-1193.01,8.219e-05,2]